bitfinex/quotes_BTCUSD_20240101
["timestamp","ask_amount","ask_price","bid_price","bid_amount"]
[1704080418474,0.75337573,42442.0,42441.0,0.09847401]
[1704080418691,0.29514473,42442.0,42441.0,0.09847401]
[1704080418904,0.76637573,42442.0,42441.0,0.09847401]
[1704080419118,1.05337573,42442.0,42441.0,0.09847401]
[1704080419336,1.04137573,42442.0,42441.0,0.09847401]
[1704080419976,1.05737573,42442.0,42441.0,0.09847401]
[1704080420621,1.07237573,42442.0,42441.0,0.09847401]
[1704080421072,1.05737573,42442.0,42441.0,0.09847401]
[1704080421283,1.05837573,42442.0,42441.0,0.09847401]
[1704080421526,1.07637573,42442.0,42441.0,0.09847401]
[1704080421945,1.05837573,42442.0,42441.0,0.09847401]
[1704080422159,1.07637573,42442.0,42441.0,0.09847401]
[1704080422595,1.05937573,42442.0,42441.0,0.09847401]
[1704080422865,1.04137573,42442.0,42441.0,0.09847401]
[1704080423077,1.05937573,42442.0,42441.0,0.09847401]
[1704080423209,1.53060673,42442.0,42441.0,0.09847401]
[1704080423853,1.54760673,42442.0,42441.0,0.09847401]
[1704080424054,1.53060673,42442.0,42441.0,0.09847401]
[1704080424624,1.52760673,42442.0,42441.0,0.09847401]
[1704080425045,1.54360673,42442.0,42441.0,0.09847401]
[1704080426288,2.01483773,42442.0,42437.0,0.12718401]
[1704080426504,0.94255,42438.0,42437.0,0.12718401]
[1704080426711,1.17576711,42438.0,42437.0,0.12718401]
[1704080428195,1.18676711,42438.0,42437.0,0.12718401]
[1704080428409,1.34041475,42438.0,42437.0,0.12718401]
[1704080429050,1.18676711,42438.0,42437.0,0.12718401]
[1704080429257,1.19876711,42438.0,42437.0,0.12718401]
[1704080429911,0.72749211,42438.0,42437.0,0.12718401]
[1704080430577,0.71649211,42438.0,42437.0,0.12718401]
[1704080430993,0.72949211,42438.0,42437.0,0.12718401]
[1704080431208,0.71749211,42438.0,42437.0,0.12718401]
[1704080431421,0.71649211,42438.0,42437.0,0.12718401]
[1704080431853,0.72949211,42438.0,42437.0,0.12718401]
[1704080433265,0.89112601,42438.0,42437.0,0.12718401]
[1704080434113,1.19112601,42438.0,42437.0,0.12718401]
[1704080435617,1.66240101,42438.0,42437.0,0.12718401]
[1704080435824,1.66240101,42438.0,42437.0,0.02871]
[1704080436037,1.68540101,42438.0,42437.0,0.02871]
[1704080437159,1.66040101,42438.0,42437.0,0.02871]
[1704080437372,1.18912601,42438.0,42437.0,0.02871]
[1704080437607,1.68940101,42438.0,42437.0,0.02871]
[1704080437822,1.20412601,42438.0,42437.0,0.02871]
[1704080438078,1.18912601,42438.0,42437.0,0.02871]
[1704080438337,1.24690222,42438.0,42437.0,0.02871]
[1704080440671,0.77562722,42438.0,42437.0,0.02871]
[1704080440905,1.24690222,42438.0,42437.0,0.02871]
[1704080442953,1.71817722,42438.0,42437.0,0.02871]
[1704080443169,0.76062722,42438.0,42437.0,0.02871]
[1704080443413,1.70717722,42438.0,42437.0,0.02871]
[1704080443850,1.70617722,42438.0,42437.0,0.02871]
[1704080444311,1.25290222,42438.0,42437.0,0.02871]
[1704080444522,1.72417722,42438.0,42437.0,0.02871]
[1704080446728,1.25290222,42438.0,42437.0,0.02871]
[1704080446991,1.72417722,42438.0,42437.0,0.02541]
[1704080447231,2.19545222,42438.0,42437.0,0.02541]
[1704080448704,2.19697821,42438.0,42437.0,0.02541]
[1704080450047,0.00152599,42437.0,42435.0,0.0194134]
[1704080450254,1.64710811,42436.0,42435.0,0.0194134]
[1704080450511,1.94710811,42436.0,42435.0,0.0194134]
[1704080450766,1.97010811,42436.0,42435.0,0.0194134]
[1704080451003,2.0178941,42436.0,42435.0,4e-07]
[1704080451241,2.41299043,42436.0,42435.0,4e-07]
[1704080451478,2.41299043,42436.0,42425.0,0.2208]
[1704080451479,0.00152599,42431.0,42425.0,0.2208]
[1704080451721,2.13836549,42431.0,42425.0,0.2208]
[1704080451930,2.13836549,42431.0,42425.0,0.31927401]
[1704080452368,2.1368395,42431.0,42425.0,0.31927401]
[1704080452581,1.66701249,42431.0,42425.0,0.31927401]
[1704080453444,1.68501249,42431.0,42425.0,0.31927401]
[1704080453670,1.70301249,42431.0,42425.0,0.31927401]
[1704080456658,1.7014865,42431.0,42429.0,0.09847401]
[1704080457966,1.2301335,42431.0,42429.0,0.09847401]
[1704080458595,1.7014865,42431.0,42429.0,0.09847401]
[1704080459473,1.25837646,42431.0,42429.0,0.09847401]
[1704080461265,0.78702346,42431.0,42429.0,0.09847401]
[1704080461683,1.25837646,42431.0,42428.0,0.09847401]
[1704080462107,1.25837646,42431.0,42427.0,0.09847401]
[1704080462332,1.72972946,42431.0,42428.0,0.2089]
[1704080464496,1.72972946,42431.0,42424.0,0.02871]
[1704080464497,1.29333897,42431.0,42424.0,0.02871]
[1704080464705,0.00152599,42429.0,42425.0,0.2089]
[1704080464922,0.23321711,42426.0,42425.0,0.2089]
[1704080465132,1.00462611,42426.0,42425.0,0.2089]
[1704080465334,1.00462611,42426.0,42424.0,0.02871]
[1704080465335,1.02762611,42426.0,42424.0,0.02871]
[1704080465560,0.79442,42425.0,42424.0,0.02871]
[1704080465771,1.02763711,42425.0,42424.0,0.02871]
[1704080466597,1.03663711,42425.0,42424.0,0.02871]
[1704080466806,1.04763711,42425.0,42424.0,0.02871]
[1704080467244,1.21298972,42425.0,42424.0,0.02871]
[1704080467938,1.04763711,42425.0,42424.0,0.02871]
[1704080469240,1.02463711,42425.0,42424.0,0.02871]
[1704080469447,1.04763711,42425.0,42424.0,0.02871]
[1704080473266,1.04763711,42425.0,42424.0,0.07566]
[1704080475634,1.04763711,42425.0,42424.0,0.04695]
[1704080477854,1.51905711,42425.0,42424.0,0.04695]
[1704080478719,1.55600051,42425.0,42424.0,0.04695]
[1704080478949,1.51905711,42425.0,42424.0,0.04695]
[1704080480231,0.2015259,42424.0,42423.0,0.02871]
[1704080480476,0.00152599,42420.0,42419.0,0.02871]
[1704080480688,1.1776931,42420.0,42419.0,0.02871]
[1704080480898,1.00469211,42420.0,42419.0,0.02871]
[1704080481107,1.02769211,42420.0,42419.0,0.02871]
[1704080481326,1.02769211,42420.0,42419.0,0.07566]
[1704080481327,1.60069301,42420.0,42419.0,0.07566]
[1704080481744,1.73763983,42420.0,42419.0,0.07566]
[1704080481956,1.73763983,42420.0,42419.0,0.02871]
[1704080481957,1.53611393,42420.0,42419.0,0.02871]
[1704080482165,1.55411393,42420.0,42419.0,0.02871]
[1704080482414,1.08263893,42420.0,42419.0,0.02871]
[1704080482702,1.08263893,42420.0,42419.0,0.07566]
[1704080482703,1.09963893,42420.0,42419.0,0.07566]
[1704080482920,1.09963893,42420.0,42419.0,0.0286327]
[1704080483393,1.09963893,42420.0,42419.0,0.0755827]
[1704080483680,1.07663893,42420.0,42419.0,0.17405671]
[1704080483922,1.07663893,42420.0,42419.0,0.22115671]
[1704080484152,1.07663893,42420.0,42419.0,0.17405671]
[1704080484574,1.07663893,42420.0,42419.0,0.21947671]
[1704080484788,1.07663893,42420.0,42419.0,0.17405671]
[1704080487106,1.20776395,42420.0,42419.0,0.17405671]
[1704080488427,1.20776395,42420.0,42419.0,0.0755827]
[1704080489870,1.07663893,42420.0,42419.0,0.0755827]
[1704080491127,1.54811393,42420.0,42419.0,0.0755827]
[1704080491338,1.57111393,42420.0,42419.0,0.0755827]
[1704080492599,1.57111393,42420.0,42419.0,0.0286327]
[1704080493027,2.04411492,42420.0,42419.0,0.0286327]
[1704080494568,1.57263992,42420.0,42419.0,0.0286327]
[1704080495612,0.62968992,42420.0,42419.0,0.0286327]
[1704080496459,1.57263992,42420.0,42419.0,0.0286327]
[1704080496666,2.04411492,42420.0,42419.0,0.0286327]
[1704080499153,2.17952202,42420.0,42419.0,0.0286327]
[1704080499388,1.70804702,42420.0,42419.0,0.0286327]
[1704080504722,2.17952202,42420.0,42419.0,0.0286327]
[1704080507928,2.17952202,42420.0,42419.0,0.0755827]
[1704080507929,1.70652103,42420.0,42419.0,0.0755827]
[1704080508356,1.70652103,42420.0,42419.0,0.17405671]
[1704080508357,1.07438286,42420.0,42419.0,0.17405671]
[1704080511404,0.77438286,42420.0,42419.0,0.22997671]
[1704080512263,0.75738286,42420.0,42419.0,0.22997671]
[1704080512501,0.73938286,42420.0,42419.0,0.22997671]
[1704080512719,0.77138286,42420.0,42419.0,0.22997671]
[1704080513156,0.75438286,42420.0,42419.0,0.22997671]
[1704080513663,0.76338286,42420.0,42419.0,0.22997671]
[1704080513844,0.74838286,42420.0,42419.0,0.17405671]
[1704080514265,0.75638286,42420.0,42419.0,0.17405671]
[1704080517396,0.28490786,42420.0,42419.0,0.17405671]
[1704080517611,0.75638286,42420.0,42419.0,0.0755827]
[1704080518944,0.75638286,42420.0,42419.0,0.17405671]
[1704080519377,0.75638286,42420.0,42419.0,0.0755827]
[1704080519602,0.75638286,42420.0,42419.0,0.17405671]
[1704080527426,1.52938385,42420.0,42419.0,0.0755827]
[1704080527652,1.55238385,42420.0,42419.0,0.0755827]
[1704080528271,1.54438385,42420.0,42419.0,0.0755827]
[1704080528690,1.55238385,42420.0,42419.0,0.0755827]
[1704080528956,1.57038385,42420.0,42419.0,0.0755827]
[1704080529165,1.57038385,42420.0,42419.0,0.07440281]
[1704080529370,1.55238385,42420.0,42419.0,0.07440281]
[1704080529780,1.57038385,42420.0,42419.0,0.07440281]
[1704080532126,1.15485525,42420.0,42419.0,0.07440281]
[1704080532259,0.68338025,42420.0,42419.0,0.07440281]
[1704080532444,1.15485525,42420.0,42419.0,0.07440281]
[1704080532649,1.57038385,42420.0,42419.0,0.07440281]
[1704080533489,2.04185885,42420.0,42419.0,0.07440281]
[1704080535730,1.57038385,42420.0,42419.0,0.07440281]
[1704080535949,1.77038376,42420.0,42419.0,0.04695]
[1704080536159,0.00152599,42419.0,42418.0,0.02871]
[1704080536375,1.0292291,42419.0,42418.0,0.02871]
[1704080536585,1.9722011,42419.0,42418.0,0.02871]
[1704080537432,2.0184611,42419.0,42418.0,0.02871]
[1704080537873,2.0364611,42419.0,42418.0,0.02871]
[1704080538086,0.00152599,42413.0,42411.0,0.04695]
[1704080538298,1.17634511,42412.0,42411.0,0.04695]
[1704080538536,1.49934511,42412.0,42411.0,0.04695]
[1704080539169,1.5008711,42412.0,42411.0,0.04695]
[1704080540435,1.5008711,42412.0,42408.0,0.0058864]
[1704080540436,0.2015259,42409.0,42408.0,0.0058864]
[1704080540649,0.00152599,42407.0,42406.0,0.02871]
[1704080540859,1.4779831,42407.0,42406.0,0.02871]
[1704080541087,1.5009831,42407.0,42406.0,0.02871]
[1704080541307,2.17260301,42407.0,42406.0,0.02871]
[1704080541751,0.00152599,42402.0,42401.0,0.11509287]
[1704080541966,1.1780931,42402.0,42401.0,0.11509287]
[1704080542172,1.5010931,42402.0,42401.0,0.11509287]
[1704080542379,1.63267491,42402.0,42401.0,0.11509287]
[1704080542824,1.83267482,42402.0,42401.0,0.11509287]
[1704080543043,1.85067482,42402.0,42401.0,0.11509287]
[1704080543261,1.83267482,42402.0,42401.0,0.11509287]
[1704080543467,1.85067482,42402.0,42401.0,0.11509287]
[1704080543891,1.04589211,42402.0,42401.0,0.11509287]
[1704080545127,1.10085406,42402.0,42401.0,0.11509287]
[1704080545746,0.00152599,42399.0,42398.0,0.02871]
[1704080545969,0.7064521,42399.0,42398.0,0.02871]
[1704080546200,0.72792611,42399.0,42398.0,0.02871]
[1704080546420,1.02792611,42399.0,42398.0,0.02871]
[1704080547266,1.04592611,42399.0,42398.0,0.02871]
[1704080547688,1.06392611,42399.0,42398.0,0.02871]
[1704080550679,1.04092611,42399.0,42398.0,0.12718401]
[1704080550900,0.74092611,42399.0,42398.0,0.12718401]
[1704080551344,0.74092611,42399.0,42398.0,0.02871]
[1704080551594,0.70492611,42399.0,42398.0,0.02871]
[1704080551854,0.74092611,42399.0,42398.0,0.12718401]
[1704080552066,0.72292611,42399.0,42398.0,0.12718401]
[1704080552279,0.71592611,42399.0,42398.0,0.12718401]
[1704080552501,1.01592611,42399.0,42398.0,0.12718401]
[1704080552752,1.00492611,42399.0,42398.0,0.12718401]
[1704080552982,1.02292611,42399.0,42398.0,0.12718401]
[1704080553687,1.03492611,42399.0,42398.0,0.12718401]
[1704080554152,0.55121711,42399.0,42398.0,0.12718401]
[1704080554397,1.02292611,42399.0,42398.0,0.12718401]
[1704080554645,1.04092611,42399.0,42398.0,0.12718401]
[1704080559391,1.02292611,42399.0,42398.0,0.12718401]
[1704080559598,1.01892611,42399.0,42398.0,0.12718401]
[1704080559806,1.02292611,42399.0,42398.0,0.12718401]
[1704080560028,1.03592611,42399.0,42398.0,0.12718401]
[1704080560240,1.01792611,42399.0,42398.0,0.12718401]
[1704080560667,1.03192611,42399.0,42398.0,0.12718401]
[1704080563472,1.01792611,42399.0,42398.0,0.12718401]
[1704080563686,1.03192611,42399.0,42398.0,0.12718401]
[1704080564320,1.01892611,42399.0,42398.0,0.12718401]
[1704080564686,1.03192611,42399.0,42398.0,0.12718401]
[1704080566819,1.03192611,42399.0,42398.0,0.02871]
[1704080567695,0.56021711,42399.0,42398.0,0.02871]
[1704080567909,1.03192611,42399.0,42398.0,0.02871]
[1704080574453,1.05492611,42399.0,42398.0,0.02871]
[1704080574724,1.0564521,42399.0,42398.0,0.02871]
[1704080575349,1.5281611,42399.0,42398.0,0.02871]
[1704080581202,1.05492611,42399.0,42398.0,0.02871]
[1704080588207,1.03192611,42399.0,42398.0,0.12718401]
[1704080594776,0.56021711,42399.0,42398.0,0.12718401]
[1704080595555,1.03192611,42399.0,42398.0,0.12718401]
[1704080597729,1.03192611,42399.0,42398.0,0.1241112]
[1704080598146,0.56021711,42399.0,42398.0,0.1241112]
[1704080598360,1.03192611,42399.0,42398.0,0.1241112]
[1704080599672,1.17129709,42399.0,42398.0,0.1241112]
[1704080599901,1.17129709,42399.0,42398.0,0.02563719]
[1704080600121,1.64300609,42399.0,42398.0,0.02563719]
[1704080600331,1.66753208,42399.0,42398.0,0.02563719]
[1704080605826,2.13924108,42399.0,42398.0,0.02563719]
[1704080606062,2.33924099,42399.0,42398.0,0.02563719]
[1704080606310,0.00152599,42396.0,42394.0,0.02871]
[1704080606576,1.17672311,42395.0,42394.0,0.02871]
[1704080606811,1.49972311,42395.0,42394.0,0.02871]
[1704080607240,0.2015259,42393.0,42392.0,0.0194134]
[1704080607509,1.67829501,42393.0,42392.0,0.0194134]
[1704080607721,1.86833077,42393.0,42392.0,0.0194134]
[1704080608191,2.34010677,42393.0,42392.0,0.0194134]
[1704080608406,2.39356677,42393.0,42392.0,0.0194134]
[1704080608631,2.34010677,42393.0,42392.0,0.0194134]
[1704080608839,2.35810677,42393.0,42392.0,0.0194134]
[1704080609047,2.35810677,42393.0,42387.0,0.02871]
[1704080609048,0.00152599,42388.0,42387.0,0.02871]
[1704080609257,0.7065741,42388.0,42387.0,0.02871]
[1704080609470,1.0295741,42388.0,42387.0,0.02871]
[1704080609890,1.06654848,42388.0,42387.0,0.02871]
[1704080610308,1.8016689,42388.0,42387.0,0.02871]
[1704080610527,1.9615489,42388.0,42387.0,0.02871]
[1704080610950,1.9016689,42388.0,42387.0,0.02871]
[1704080611390,1.9665289,42388.0,42387.0,0.02871]
[1704080611608,1.9704889,42388.0,42387.0,0.02871]
[1704080612263,1.99830207,42388.0,42387.0,0.02871]
[1704080613820,1.52647107,42388.0,42387.0,0.02871]
[1704080614030,1.99830207,42388.0,42387.0,0.02871]
[1704080614240,0.2015259,42382.0,42376.0,0.02871]
[1704080614451,0.90664101,42382.0,42376.0,0.02871]
[1704080614668,1.22964101,42382.0,42376.0,0.02871]
[1704080615149,1.70153901,42382.0,42376.0,0.02871]
[1704080615381,0.00152599,42377.0,42376.0,0.02871]
[1704080615599,0.7066971,42377.0,42376.0,0.02871]
[1704080615807,1.0296971,42377.0,42376.0,0.02871]
[1704080616245,1.87246961,42377.0,42376.0,0.02871]
[1704080616481,1.88446961,42377.0,42376.0,0.02871]
[1704080616698,0.2115259,42376.0,42369.0,0.00160025]
[1704080616931,1.71167301,42376.0,42375.0,0.02371]
[1704080617138,1.75979301,42376.0,42375.0,0.02371]
[1704080617363,0.00152599,42371.0,42369.0,0.00160025]
[1704080617581,0.70524911,42370.0,42369.0,0.00160025]
[1704080617797,1.02824911,42370.0,42369.0,0.00160025]
[1704080618220,1.17802366,42370.0,42369.0,0.00160025]
[1704080618646,1.18302366,42370.0,42369.0,0.00160025]
[1704080619581,1.18902366,42370.0,42369.0,0.00160025]
[1704080620928,1.19054965,42370.0,42369.0,0.00160025]
[1704080621996,1.17954965,42370.0,42369.0,0.00160025]
[1704080622201,1.21454965,42370.0,42369.0,0.00160025]
[1704080622682,1.19754965,42370.0,42369.0,0.00160025]
[1704080622871,1.19654965,42370.0,42369.0,0.00160025]
[1704080623078,0.2015259,42369.0,42368.0,0.02871]
[1704080623282,0.2015259,42369.0,42355.0,0.02871]
[1704080623283,0.00152599,42365.0,42362.0,0.214]
[1704080623479,0.23321711,42363.0,42358.0,0.12718401]
[1704080623806,1.00533811,42362.0,42359.0,0.31247401]
[1704080624015,0.70533811,42362.0,42359.0,0.214]
[1704080624220,1.0068641,42362.0,42359.0,0.214]
[1704080624426,1.5019851,42362.0,42359.0,0.214]
[1704080625377,1.5069851,42362.0,42359.0,0.214]
[1704080626056,1.5129851,42362.0,42359.0,0.214]
[1704080626270,1.51145911,42362.0,42359.0,0.214]
[1704080626481,1.01633811,42362.0,42359.0,0.214]
[1704080627820,1.01633811,42362.0,42359.0,0.31247401]
[1704080628463,1.01633811,42362.0,42359.0,0.214]
[1704080628881,1.03933811,42362.0,42359.0,0.214]
[1704080629097,1.51145911,42362.0,42359.0,0.214]
[1704080630975,1.51145911,42362.0,42361.0,0.00698353]
[1704080632130,1.03933811,42362.0,42361.0,0.00698353]
[1704080632598,0.56721711,42362.0,42361.0,0.00698353]
[1704080633674,1.03933811,42362.0,42361.0,0.00698353]
[1704080634310,1.0408641,42362.0,42361.0,0.00698353]
[1704080634545,1.1408641,42362.0,42361.0,0.00698353]
[1704080635647,1.1348641,42362.0,42361.0,0.00698353]
[1704080635853,0.6627431,42362.0,42361.0,0.00698353]
[1704080636076,0.76274301,42362.0,42361.0,0.00698353]
[1704080636288,1.28238401,42362.0,42361.0,0.00698353]
[1704080636495,1.23486401,42362.0,42361.0,0.00698353]
[1704080636714,1.28424401,42362.0,42361.0,0.00698353]
[1704080636924,1.29324401,42362.0,42361.0,0.00698353]
[1704080637151,1.28824401,42362.0,42361.0,0.00698353]
[1704080637373,1.28824401,42362.0,42358.0,0.02871]
[1704080637374,0.2015259,42359.0,42358.0,0.02871]
[1704080637603,1.67905101,42359.0,42358.0,0.02871]
[1704080637823,1.70205101,42359.0,42358.0,0.02871]
[1704080638072,1.70205101,42359.0,42355.0,0.02871]
[1704080638073,0.10152599,42356.0,42355.0,0.02871]
[1704080638299,0.10152599,42356.0,42349.0,0.02871]
[1704080638300,0.00152599,42351.0,42349.0,0.02871]
[1704080638521,0.7069861,42351.0,42349.0,0.02871]
[1704080638750,0.7069861,42351.0,42314.0,0.14119247]
[1704080638751,0.00152599,42325.0,42314.0,0.14119247]
[1704080638983,0.29999991,42308.0,42307.0,0.0312134]
[1704080639205,0.29999991,42308.0,42300.0,0.00084545]
[1704080639206,0.29999991,42302.0,42300.0,0.00084545]
[1704080639477,0.3118,42312.0,42300.0,0.00084545]
[1704080639716,0.14510898,42314.0,42301.0,0.18504089]
[1704080639717,0.0118,42314.0,42301.0,0.18504089]
[1704080639939,0.3,42313.0,42312.0,0.2]
[1704080640158,0.04806,42328.0,42301.0,0.32406089]
[1704080640159,0.3,42315.0,42310.0,0.2]
[1704080640373,0.3,42315.0,42314.0,0.3]
[1704080640637,0.3,42315.0,42311.0,0.23321711]
[1704080640638,0.01,42325.0,42311.0,0.24936]
[1704080640854,0.23321711,42324.0,42319.0,0.2]
[1704080641075,0.47247,42331.0,42320.0,0.2]
[1704080641306,0.47247,42331.0,42318.0,0.24764]
[1704080641307,0.13942,42327.0,42318.0,0.24764]
[1704080641527,0.47247,42331.0,42324.0,0.2]
[1704080641528,0.23321711,42326.0,42324.0,0.2]
[1704080641745,0.014,42325.0,42323.0,0.2]
[1704080641993,0.23321711,42324.0,42313.0,0.2]
[1704080642208,0.23321711,42324.0,42319.0,0.2]
[1704080642424,0.23321711,42324.0,42320.0,0.2]
[1704080642639,0.23321711,42324.0,42321.0,0.2]
[1704080642858,0.23321711,42324.0,42320.0,0.1]
[1704080642859,0.23321711,42324.0,42320.0,0.2]
[1704080643298,0.23321711,42324.0,42320.0,0.1]
[1704080643521,0.23321711,42324.0,42321.0,0.2]
[1704080643738,0.15824091,42334.0,42323.0,0.2]
[1704080643739,0.3,42334.0,42323.0,0.2]
[1704080643954,0.006,42324.0,42323.0,0.2]
[1704080644201,0.014,42324.0,42323.0,0.21]
[1704080644703,0.23321711,42333.0,42325.0,0.01]
[1704080644959,0.23321711,42333.0,42325.0,0.11]
[1704080645201,0.23321711,42333.0,42325.0,0.18190009]
[1704080645446,0.23321711,42333.0,42330.0,0.17190009]
[1704080646172,0.23321711,42333.0,42326.0,0.02819001]
[1704080646173,0.02809991,42339.0,42334.0,0.01]
[1704080646408,0.02809991,42339.0,42333.0,0.1]
[1704080646409,0.23321711,42338.0,42335.0,0.01]
[1704080646873,0.23321711,42338.0,42327.0,0.07314]
[1704080646874,0.02809991,42333.0,42328.0,0.01]
[1704080647096,0.23321711,42332.0,42331.0,0.01]
[1704080648185,0.4724,42337.0,42332.0,0.01]
[1704080648186,0.50049991,42337.0,42332.0,0.01]
[1704080648403,0.23321711,42336.0,42333.0,0.01819001]
[1704080649262,0.23321711,42336.0,42332.0,0.01]
[1704080650151,0.23921711,42336.0,42332.0,0.01]
[1704080650360,0.24421711,42336.0,42332.0,0.01]
[1704080650565,0.23321711,42336.0,42329.0,0.11]
[1704080650820,0.23321711,42336.0,42332.0,0.01]
[1704080651033,0.24421711,42336.0,42333.0,0.01819001]
[1704080652151,0.02809991,42335.0,42333.0,0.01819001]
[1704080652370,0.23321711,42334.0,42332.0,0.01]
[1704080652592,0.02809991,42330.0,42325.0,0.196]
[1704080652806,0.02809991,42330.0,42319.0,0.0555]
[1704080652807,0.02809991,42325.0,42319.0,0.11]
[1704080653020,0.02809991,42325.0,42324.0,0.01]
[1704080653707,0.472522,42326.0,42325.0,0.01]
[1704080653920,0.02809991,42327.0,42325.0,0.01]
[1704080654348,0.50057991,42330.0,42325.0,0.01]
[1704080654563,0.02809991,42331.0,42325.0,0.01]
[1704080654804,0.23321711,42330.0,42326.0,0.02819001]
[1704080655464,0.23321711,42330.0,42328.0,0.01]
[1704080655686,0.23321711,42330.0,42328.0,0.11]
[1704080655904,0.2163,42343.0,42329.0,0.1]
[1704080655905,0.17378956,42335.0,42329.0,0.1]
[1704080656183,0.23321711,42334.0,42329.0,0.1]
[1704080656417,0.23321711,42334.0,42330.0,0.02582785]
[1704080656637,0.23321711,42334.0,42333.0,0.00225618]
[1704080657527,0.26421711,42334.0,42333.0,0.00225618]
[1704080658599,0.24921711,42334.0,42333.0,0.00225618]
[1704080658811,0.23321711,42334.0,42333.0,0.00225618]
[1704080659024,0.24821711,42334.0,42333.0,0.01606458]
[1704080659235,0.26421711,42334.0,42333.0,0.01606458]
[1704080661202,0.031,42334.0,42333.0,0.11606458]
[1704080661851,0.472389,42338.0,42333.0,0.11606458]
[1704080662072,0.02,42334.0,42333.0,0.11606458]
[1704080662288,0.02,42334.0,42333.0,0.01606458]
[1704080662535,0.003,42334.0,42333.0,0.01606458]
[1704080662754,0.23321711,42337.0,42333.0,0.01606458]
[1704080662980,0.23321711,42337.0,42333.0,0.00225618]
[1704080662981,0.005,42334.0,42333.0,0.00225618]
[1704080663192,0.005,42334.0,42333.0,0.27415627]
[1704080663403,0.50045491,42341.0,42335.0,0.1]
[1704080663626,0.23321711,42340.0,42335.0,0.1]
[1704080664531,0.23321711,42340.0,42335.0,0.14764]
[1704080664749,0.02809991,42347.0,42341.0,0.1]
[1704080664961,0.23321711,42346.0,42341.0,0.1]
[1704080665200,0.23321711,42346.0,42342.0,0.01]
[1704080665835,0.23321711,42346.0,42342.0,0.11]
[1704080666521,0.24121711,42346.0,42342.0,0.11]
[1704080666728,0.25021711,42346.0,42342.0,0.15542]
[1704080666936,0.017,42346.0,42344.0,0.1]
[1704080667367,0.009,42346.0,42344.0,0.1]
[1704080667588,0.014,42346.0,42345.0,0.1556]
[1704080667803,0.014,42346.0,42345.0,0.11]
[1704080667804,0.005,42346.0,42345.0,0.11]
[1704080668231,0.012,42346.0,42345.0,0.11]
[1704080668464,0.012,42346.0,42345.0,0.28190009]
[1704080668689,0.02809991,42358.0,42351.0,0.11]
[1704080668934,0.47201702,42358.0,42352.0,0.03819001]
[1704080669171,0.47201702,42358.0,42352.0,0.08675001]
[1704080669412,0.1648012,42355.0,42352.0,0.02819001]
[1704080669657,0.23321711,42354.0,42352.0,0.01]
[1704080670844,0.23321711,42354.0,42349.0,0.11]
[1704080671079,0.23321711,42354.0,42352.0,0.01]
[1704080671972,0.24121711,42354.0,42353.0,0.04596]
[1704080672184,0.24721711,42354.0,42353.0,0.04596]
[1704080672398,0.2107,42358.0,42353.0,0.14596]
[1704080672618,0.23321711,42358.0,42355.0,0.1]
[1704080673060,0.23321711,42358.0,42356.0,0.06432]
[1704080673948,0.008,42359.0,42358.0,0.1]
[1704080674407,0.008,42359.0,42358.0,0.34738009]
[1704080674827,0.008,42359.0,42358.0,0.35738009]
[1704080675031,0.015,42359.0,42358.0,0.35738009]
[1704080675459,0.017,42359.0,42358.0,0.35738009]
[1704080675669,0.017,42359.0,42358.0,0.33656009]
[1704080675670,0.01,42359.0,42358.0,0.33656009]
[1704080675879,0.008,42359.0,42358.0,0.33756009]
[1704080676084,0.009,42359.0,42358.0,0.34056009]
[1704080676512,0.009,42359.0,42358.0,0.33756009]
[1704080676744,0.008,42359.0,42358.0,0.33756009]
[1704080676954,0.009,42359.0,42358.0,0.36380009]
[1704080677358,0.009,42359.0,42358.0,0.36680009]
[1704080679974,0.009,42359.0,42358.0,0.45914009]
[1704080680621,0.009,42359.0,42358.0,0.93130509]
[1704080681038,0.009,42359.0,42358.0,0.85240509]
[1704080681521,0.009,42359.0,42358.0,0.95794509]
[1704080684841,0.009,42359.0,42358.0,0.48578009]
[1704080685042,0.009,42359.0,42358.0,0.95794509]
[1704080685279,0.009,42359.0,42358.0,1.00084509]
[1704080685935,0.009,42359.0,42358.0,0.85816509]
[1704080686145,0.009,42359.0,42358.0,0.34730009]
[1704080686357,0.009,42359.0,42358.0,0.33730009]
[1704080686569,0.009,42359.0,42358.0,0.34730009]
[1704080687687,0.009,42359.0,42358.0,0.33730009]
[1704080687919,0.41768079,42359.0,42358.0,0.006]
[1704080688763,0.9169347,42359.0,42358.0,0.003]
[1704080688976,0.9279347,42359.0,42358.0,0.003]
[1704080689643,0.02809991,42355.0,42353.0,0.01]
[1704080689860,0.23321711,42354.0,42353.0,0.01]
[1704080690704,0.23321711,42354.0,42352.0,0.01]
[1704080691142,0.03309991,42355.0,42352.0,0.01]
[1704080691143,0.005,42355.0,42353.0,0.06]
[1704080691363,0.21,42358.0,42353.0,0.06]
[1704080691571,0.004,42354.0,42353.0,0.061]
[1704080692002,0.23721711,42354.0,42353.0,0.001]
[1704080692675,0.23321711,42354.0,42352.0,0.01]
[1704080692895,0.19182507,42356.0,42352.0,0.01]
[1704080692896,0.23321711,42353.0,42352.0,0.01]
[1704080693114,0.23321711,42353.0,42347.0,0.1]
[1704080693569,0.23321711,42353.0,42349.0,0.01]
[1704080693776,0.36347572,42353.0,42352.0,0.001]
[1704080694206,0.23321711,42353.0,42352.0,0.001]
[1704080694424,0.23321711,42353.0,42352.0,0.01]
[1704080694678,0.23521711,42353.0,42352.0,0.01]
[1704080694885,0.39163314,42353.0,42349.0,0.01]
[1704080695339,0.39163314,42353.0,42346.0,0.1]
[1704080695541,0.39163314,42353.0,42345.0,0.1549]
[1704080695753,0.38963314,42353.0,42346.0,0.1]
[1704080695976,0.59633314,42353.0,42348.0,0.01]
[1704080696187,0.59833314,42353.0,42349.0,0.01]
[1704080696626,0.59633314,42353.0,42345.0,0.05424]
[1704080696812,0.59833314,42353.0,42348.0,0.01]
[1704080697076,0.62643305,42353.0,42345.0,0.05424]
[1704080697360,0.62443305,42353.0,42347.0,0.1]
[1704080697578,0.62643305,42353.0,42349.0,0.01]
[1704080698007,0.62643305,42353.0,42348.0,0.01]
[1704080698213,0.62643305,42353.0,42344.0,0.572321]
[1704080698397,1.09865605,42353.0,42348.0,0.01]
[1704080698647,0.02809991,42350.0,42349.0,0.01]
[1704080698877,0.02809991,42350.0,42346.0,0.01]
[1704080698878,0.26131702,42350.0,42346.0,0.01]
[1704080699093,0.23321711,42349.0,42346.0,0.01]